bitfinex/quotes_BTCUSD_20230906
["timestamp","ask_amount","ask_price","bid_price","bid_amount"]
[1693977533528,3.52524565,25764.0,25763.0,0.00142245]
[1693977533731,3.52404565,25764.0,25763.0,0.00142245]
[1693977533869,3.52410565,25764.0,25763.0,0.00142245]
[1693977534239,3.52416565,25764.0,25763.0,0.00142245]
[1693977534440,3.73717264,25764.0,25763.0,0.00142245]
[1693977534649,3.73741264,25764.0,25763.0,0.00142245]
[1693977534832,3.73747264,25764.0,25763.0,0.00142245]
[1693977535033,3.73753264,25764.0,25763.0,0.00142245]
[1693977535240,3.73807264,25764.0,25763.0,0.00142245]
[1693977535454,3.73849264,25764.0,25763.0,0.00142245]
[1693977535646,3.74185264,25764.0,25763.0,0.00142245]
[1693977535804,3.73993264,25764.0,25763.0,0.00142245]
[1693977536020,3.52752565,25764.0,25763.0,0.00142245]
[1693977536225,3.52794565,25764.0,25763.0,0.00142245]
[1693977536634,3.52884565,25764.0,25763.0,0.00142245]
[1693977536969,3.52836565,25764.0,25763.0,0.00142245]
[1693977537594,3.52800565,25764.0,25763.0,0.00142245]
[1693977538419,3.52806565,25764.0,25763.0,0.00142245]
[1693977538589,3.52818565,25764.0,25763.0,0.00142245]
[1693977538793,3.52788565,25764.0,25763.0,0.00142245]
[1693977538999,3.90889092,25764.0,25763.0,0.00142245]
[1693977539591,3.91009092,25764.0,25763.0,0.00142245]
[1693977539794,3.91033092,25764.0,25763.0,0.00142245]
[1693977539977,3.91039092,25764.0,25763.0,0.00142245]
[1693977540179,3.90943092,25764.0,25763.0,0.00142245]
[1693977540382,3.90967092,25764.0,25763.0,0.00142245]
[1693977540589,3.91057092,25764.0,25763.0,0.00142245]
[1693977540792,3.91063092,25764.0,25763.0,0.00142245]
[1693977541171,3.91039092,25764.0,25763.0,0.00142245]
[1693977541368,3.91045092,25764.0,25763.0,0.00142245]
[1693977541632,3.91051092,25764.0,25763.0,0.00142245]
[1693977542234,3.91045092,25764.0,25763.0,0.00142245]
[1693977542437,3.91027092,25764.0,25763.0,0.00142245]
[1693977542665,3.90955092,25764.0,25763.0,0.00142245]
[1693977542867,3.90943092,25764.0,25763.0,0.00142245]
[1693977543045,3.90571092,25764.0,25763.0,0.00142245]
[1693977543251,3.90577092,25764.0,25763.0,0.00142245]
[1693977543748,3.52164565,25764.0,25763.0,0.00142245]
[1693977543971,3.51978565,25764.0,25763.0,0.00142245]
[1693977544137,3.51984565,25764.0,25763.0,0.00142245]
[1693977544303,3.51900565,25764.0,25763.0,0.00142245]
[1693977544511,3.52260565,25764.0,25763.0,0.00142245]
[1693977544738,3.52314565,25764.0,25763.0,0.00142245]
[1693977544911,3.52362565,25764.0,25763.0,0.00142245]
[1693977545246,3.52326565,25764.0,25763.0,0.00142245]
[1693977545390,3.52350565,25764.0,25763.0,0.00142245]
[1693977545590,3.52392565,25764.0,25763.0,0.00142245]
[1693977545841,3.52356565,25764.0,25763.0,0.00142245]
[1693977546040,3.52380565,25764.0,25763.0,0.00142245]
[1693977546263,3.52386565,25764.0,25763.0,0.00142245]
[1693977546462,3.52380565,25764.0,25763.0,0.00142245]
[1693977546760,3.52812565,25764.0,25763.0,0.00142245]
[1693977546968,3.52974565,25764.0,25763.0,0.00142245]
[1693977547383,3.52968565,25764.0,25763.0,0.00142245]
[1693977547782,3.52950565,25764.0,25763.0,0.00142245]
[1693977547986,3.52962565,25764.0,25763.0,0.00142245]
[1693977548199,3.52950565,25764.0,25763.0,0.00142245]
[1693977548406,3.52962565,25764.0,25763.0,0.00142245]
[1693977548617,3.52974565,25764.0,25763.0,0.00142245]
[1693977549381,3.52956565,25764.0,25763.0,0.00142245]
[1693977549830,3.52950565,25764.0,25763.0,0.00142245]
[1693977550038,3.52944565,25764.0,25763.0,0.00142245]
[1693977550239,3.52956565,25764.0,25763.0,0.00142245]
[1693977550606,3.52950565,25764.0,25763.0,0.00142245]
[1693977550796,3.52962565,25764.0,25763.0,0.00142245]
[1693977550996,3.52950565,25764.0,25763.0,0.00142245]
[1693977551663,3.52710565,25764.0,25763.0,0.00142245]
[1693977551850,3.52884565,25764.0,25763.0,0.00142245]
[1693977552020,3.52890565,25764.0,25763.0,0.00142245]
[1693977552226,3.66239469,25764.0,25763.0,0.00142245]
[1693977552447,3.66143469,25764.0,25763.0,0.00142245]
[1693977552981,3.66119469,25764.0,25763.0,0.00142245]
[1693977553200,3.66071469,25764.0,25763.0,0.00142245]
[1693977553378,3.66077469,25764.0,25763.0,0.00142245]
[1693977554117,3.52722565,25764.0,25763.0,0.00142245]
[1693977554603,3.52728565,25764.0,25763.0,0.00142245]
[1693977555160,3.52890565,25764.0,25763.0,0.00142245]
[1693977555364,3.52896565,25764.0,25763.0,0.00142245]
[1693977555563,3.52902565,25764.0,25763.0,0.00142245]
[1693977555749,3.52908565,25764.0,25763.0,0.00142245]
[1693977555949,3.52932565,25764.0,25763.0,0.00142245]
[1693977556148,3.53190565,25764.0,25763.0,0.00142245]
[1693977556539,3.91879092,25764.0,25763.0,0.00142245]
[1693977556724,3.91777092,25764.0,25763.0,0.00142245]
[1693977557016,3.91789092,25764.0,25763.0,0.00142245]
[1693977557252,3.91771092,25764.0,25763.0,0.00142245]
[1693977557463,3.91855092,25764.0,25763.0,0.00142245]
[1693977557644,3.91771092,25764.0,25763.0,0.00142245]
[1693977557793,3.91789092,25764.0,25763.0,0.00142245]
[1693977558494,3.91783092,25764.0,25763.0,0.00142245]
[1693977558704,3.91789092,25764.0,25763.0,0.00142245]
[1693977559300,3.91783092,25764.0,25763.0,0.00142245]
[1693977559729,3.91801092,25764.0,25763.0,0.00142245]
[1693977559933,3.91795092,25764.0,25763.0,0.00142245]
[1693977560332,3.91789092,25764.0,25763.0,0.00142245]
[1693977560544,3.91795092,25764.0,25763.0,0.00142245]
[1693977560756,3.91789092,25764.0,25763.0,0.00142245]
[1693977560997,3.91831092,25764.0,25763.0,0.00142245]
[1693977561202,3.91837092,25764.0,25763.0,0.00142245]
[1693977561402,3.91831092,25764.0,25763.0,0.00142245]
[1693977561608,3.91807092,25764.0,25763.0,0.00142245]
[1693977561954,3.91819092,25764.0,25763.0,0.00142245]
[1693977562127,3.91759092,25764.0,25763.0,0.00142245]
[1693977562330,3.91825092,25764.0,25763.0,0.00142245]
[1693977562569,3.91831092,25764.0,25763.0,0.00142245]
[1693977562749,3.91855092,25764.0,25763.0,0.00142245]
[1693977562883,3.91843092,25764.0,25763.0,0.00142245]
[1693977563115,3.91837092,25764.0,25763.0,0.00142245]
[1693977563310,3.91825092,25764.0,25763.0,0.00142245]
[1693977563515,3.91807092,25764.0,25763.0,0.00142245]
[1693977563735,3.91813092,25764.0,25763.0,0.00142245]
[1693977563943,3.9014388,25764.0,25763.0,0.00142245]
[1693977564384,3.76214145,25764.0,25763.0,0.00142245]
[1693977565039,3.76208145,25764.0,25763.0,0.00142245]
[1693977565448,3.76196145,25764.0,25763.0,0.00142245]
[1693977565650,3.76190145,25764.0,25763.0,0.00142245]
[1693977566094,3.76268145,25764.0,25763.0,0.00142245]
[1693977566242,3.76274145,25764.0,25763.0,0.00142245]
[1693977566461,3.76304145,25764.0,25763.0,0.00142245]
[1693977566850,3.76250145,25764.0,25763.0,0.00142245]
[1693977567471,3.75650145,25764.0,25763.0,0.00142245]
[1693977567624,3.75284145,25764.0,25763.0,0.00142245]
[1693977567827,3.75248145,25764.0,25763.0,0.00142245]
[1693977568028,3.75332145,25764.0,25763.0,0.00142245]
[1693977568242,3.36535618,25764.0,25763.0,0.00142245]
[1693977568606,3.36211618,25764.0,25763.0,0.00142245]
[1693977568896,3.35725618,25764.0,25763.0,0.00142245]
[1693977569092,3.35731618,25764.0,25763.0,0.00142245]
[1693977569247,3.29047618,25764.0,25763.0,0.00142245]
[1693977569449,3.35635618,25764.0,25763.0,0.00142245]
[1693977569652,3.35593618,25764.0,25763.0,0.00142245]
[1693977569850,3.29047618,25764.0,25763.0,0.00142245]
[1693977570077,3.35587618,25764.0,25763.0,0.00142245]
[1693977570289,3.35599618,25764.0,25763.0,0.00142245]
[1693977570621,3.35641618,25764.0,25763.0,0.00142245]
[1693977570941,3.35695618,25764.0,25763.0,0.00142245]
[1693977571165,3.36121618,25764.0,25763.0,0.00142245]
[1693977571363,3.36127618,25764.0,25763.0,0.00142245]
[1693977571570,3.36313618,25764.0,25763.0,0.00142245]
[1693977571789,3.36295618,25764.0,25763.0,0.00142245]
[1693977571970,3.36481618,25764.0,25763.0,0.00142245]
[1693977572171,3.36679618,25764.0,25763.0,0.00142245]
[1693977572395,3.36847618,25764.0,25763.0,0.00142245]
[1693977572627,3.75512145,25764.0,25763.0,0.00142245]
[1693977572827,3.75458145,25764.0,25763.0,0.00142245]
[1693977572963,3.75422145,25764.0,25763.0,0.00142245]
[1693977573164,3.75476145,25764.0,25763.0,0.00142245]
[1693977573779,3.75494145,25764.0,25763.0,0.00142245]
[1693977574157,3.75302145,25764.0,25763.0,0.00142245]
[1693977574365,3.75290145,25764.0,25763.0,0.00142245]
[1693977574566,3.75284145,25764.0,25763.0,0.00142245]
[1693977574787,3.75278145,25764.0,25763.0,0.00142245]
[1693977575422,3.75290145,25764.0,25763.0,0.00142245]
[1693977575877,3.75296145,25764.0,25763.0,0.00142245]
[1693977576323,3.75278145,25764.0,25763.0,0.00142245]
[1693977576524,3.75302145,25764.0,25763.0,0.00142245]
[1693977576843,3.75284145,25764.0,25763.0,0.00142245]
[1693977576999,3.75314145,25764.0,25763.0,0.00142245]
[1693977577351,3.75260145,25764.0,25763.0,0.00142245]
[1693977577503,3.75266145,25764.0,25763.0,0.00142245]
[1693977578271,3.36679618,25764.0,25763.0,0.00142245]
[1693977578408,3.36685618,25764.0,25763.0,0.00142245]
[1693977578590,3.36679618,25764.0,25763.0,0.00142245]
[1693977578785,3.36685618,25764.0,25763.0,0.00142245]
[1693977579210,3.36679618,25764.0,25763.0,0.00142245]
[1693977579480,3.70077796,25764.0,25763.0,0.00142245]
[1693977579660,3.70923796,25764.0,25763.0,0.00142245]
[1693977579871,3.71325796,25764.0,25763.0,0.00142245]
[1693977580131,3.71409796,25764.0,25763.0,0.00142245]
[1693977580339,3.71373796,25764.0,25763.0,0.00142245]
[1693977580463,3.71325796,25764.0,25763.0,0.00142245]
[1693977580671,3.71319796,25764.0,25763.0,0.00142245]
[1693977580872,3.71403796,25764.0,25763.0,0.00142245]
[1693977581218,3.71355796,25764.0,25763.0,0.00142245]
[1693977581422,3.71331796,25764.0,25763.0,0.00142245]
[1693977581559,3.71361796,25764.0,25763.0,0.00142245]
[1693977581948,3.71367796,25764.0,25763.0,0.00142245]
[1693977582142,3.71361796,25764.0,25763.0,0.00142245]
[1693977582345,3.71319796,25764.0,25763.0,0.00142245]
[1693977582569,3.71235796,25764.0,25763.0,0.00142245]
[1693977582929,3.71181796,25764.0,25763.0,0.00142245]
[1693977583129,3.71097796,25764.0,25763.0,0.00142245]
[1693977583522,3.71067796,25764.0,25763.0,0.00142245]
[1693977583726,3.70845796,25764.0,25763.0,0.00142245]
[1693977584070,3.70887796,25764.0,25763.0,0.00142245]
[1693977584269,3.70737796,25764.0,25763.0,0.00142245]
[1693977584485,3.70725796,25764.0,25763.0,0.00142245]
[1693977584728,3.70737796,25764.0,25763.0,0.00142245]
[1693977584920,3.70743796,25764.0,25763.0,0.00142245]
[1693977585328,3.70839796,25764.0,25763.0,0.00142245]
[1693977585477,3.70875796,25764.0,25763.0,0.00142245]
[1693977586247,3.70948587,25764.0,25763.0,0.00142245]
[1693977586377,3.70912587,25764.0,25763.0,0.00142245]
[1693977587193,3.70882587,25764.0,25763.0,0.00142245]
[1693977587598,3.70924587,25764.0,25763.0,0.00142245]
[1693977587999,3.70912587,25764.0,25763.0,0.00142245]
[1693977588281,3.70924587,25764.0,25763.0,0.00142245]
[1693977588658,3.70876587,25764.0,25763.0,0.00142245]
[1693977589072,3.70774587,25764.0,25763.0,0.00142245]
[1693977589469,3.70606587,25764.0,25763.0,0.00142245]
[1693977589626,3.70630587,25764.0,25763.0,0.00142245]
[1693977589986,3.70762587,25764.0,25763.0,0.00142245]
[1693977590185,3.70756587,25764.0,25763.0,0.00142245]
[1693977590430,3.70750587,25764.0,25763.0,0.00142245]
[1693977590603,3.70768587,25764.0,25763.0,0.00142245]
[1693977590820,3.71080587,25764.0,25763.0,0.00142245]
[1693977591206,3.71272587,25764.0,25763.0,0.00142245]
[1693977591338,3.71278587,25764.0,25763.0,0.00142245]
[1693977591555,3.71302587,25764.0,25763.0,0.00142245]
[1693977591894,3.71392587,25764.0,25763.0,0.00142245]
[1693977592124,3.71482587,25764.0,25763.0,0.00142245]
[1693977592304,3.72118587,25764.0,25763.0,0.00142245]
[1693977592487,3.71950587,25764.0,25763.0,0.00142245]
[1693977592684,3.71944587,25764.0,25763.0,0.00142245]
[1693977593060,3.71932587,25764.0,25763.0,0.00142245]
[1693977593239,3.71926587,25764.0,25763.0,0.00142245]
[1693977593391,3.71914587,25764.0,25763.0,0.00142245]
[1693977593588,3.71908587,25764.0,25763.0,0.00142245]
[1693977594018,3.71884587,25764.0,25763.0,0.00142245]
[1693977594222,3.71872587,25764.0,25763.0,0.00142245]
[1693977594425,3.71890587,25764.0,25763.0,0.00142245]
[1693977594658,3.71818587,25764.0,25763.0,0.00142245]
[1693977595167,3.71740587,25764.0,25763.0,0.00142245]
[1693977595317,3.71716587,25764.0,25763.0,0.00142245]
[1693977595523,3.71704587,25764.0,25763.0,0.00142245]
[1693977595718,3.71692587,25764.0,25763.0,0.00142245]
[1693977596067,3.71680587,25764.0,25763.0,0.00142245]
[1693977596423,3.71686587,25764.0,25763.0,0.00142245]
[1693977596620,3.71656587,25764.0,25763.0,0.00142245]
[1693977596851,3.71662587,25764.0,25763.0,0.00142245]
[1693977597236,3.71722587,25764.0,25763.0,0.00142245]
[1693977597443,3.71668587,25764.0,25763.0,0.00142245]
[1693977597692,3.71662587,25764.0,25763.0,0.00142245]
[1693977597934,3.71650587,25764.0,25763.0,0.00142245]
[1693977598157,3.71614587,25764.0,25763.0,0.00142245]
[1693977598374,3.71608587,25764.0,25763.0,0.00142245]
[1693977598813,3.71596587,25764.0,25763.0,0.00142245]
[1693977599025,3.71590587,25764.0,25763.0,0.00142245]
[1693977599228,3.71602587,25764.0,25763.0,0.00142245]
[1693977599426,3.71590587,25764.0,25763.0,0.00142245]
[1693977599632,3.71530587,25764.0,25763.0,0.00142245]
[1693977599767,3.71566587,25764.0,25763.0,0.00142245]
[1693977599968,3.71560587,25764.0,25763.0,0.00142245]
[1693977600328,3.71710587,25764.0,25763.0,0.00142245]
[1693977600753,3.71368587,25764.0,25763.0,0.00142245]
[1693977600956,3.71362587,25764.0,25763.0,0.00142245]
[1693977601176,3.71308587,25764.0,25763.0,0.00142245]
[1693977601375,3.71218587,25764.0,25763.0,0.00142245]
[1693977601578,3.71182587,25764.0,25763.0,0.00142245]
[1693977601735,3.71116587,25764.0,25763.0,0.00142245]
[1693977601937,3.71206587,25764.0,25763.0,0.00142245]
[1693977602339,3.71200587,25764.0,25763.0,0.00142245]
[1693977602549,3.71158587,25764.0,25763.0,0.00142245]
[1693977602702,3.71152587,25764.0,25763.0,0.00142245]
[1693977602906,3.71146587,25764.0,25763.0,0.00142245]
[1693977603105,3.70948587,25764.0,25763.0,0.00142245]
[1693977603331,3.70426587,25764.0,25763.0,0.00142245]
[1693977603530,3.70432587,25764.0,25763.0,0.00142245]
[1693977603707,3.70516587,25764.0,25763.0,0.00142245]
[1693977603911,3.37100409,25764.0,25763.0,0.00142245]
[1693977604151,3.37088409,25764.0,25763.0,0.00142245]
[1693977604529,3.37034409,25764.0,25763.0,0.00142245]
[1693977604793,3.37016409,25764.0,25763.0,0.00142245]
[1693977604951,3.37022409,25764.0,25763.0,0.00142245]
[1693977605152,3.37028409,25764.0,25763.0,0.00142245]
[1693977605792,3.37034409,25764.0,25763.0,0.00142245]
[1693977606011,3.37040409,25764.0,25763.0,0.00142245]
[1693977606425,3.37046409,25764.0,25763.0,0.00142245]
[1693977606564,3.37052409,25764.0,25763.0,0.00142245]
[1693977607198,3.37058409,25764.0,25763.0,0.00142245]
[1693977607517,3.37118409,25764.0,25763.0,0.00142245]
[1693977607717,3.37292409,25764.0,25763.0,0.00142245]
[1693977607927,3.16779543,25764.0,25763.0,0.00142245]
[1693977608139,3.16809543,25764.0,25763.0,0.00142245]
[1693977608498,3.16803543,25764.0,25763.0,0.00142245]
[1693977608696,3.16797543,25764.0,25763.0,0.00142245]
[1693977608902,3.16753868,25764.0,25763.0,0.00142245]
[1693977609101,3.16705868,25764.0,25763.0,0.00142245]
[1693977609302,3.6530254,25764.0,25763.0,0.00142245]
[1693977609847,3.6521854,25764.0,25763.0,0.00142245]
[1693977610066,3.6541654,25764.0,25763.0,0.00142245]
[1693977610254,3.6542254,25764.0,25763.0,0.00142245]
[1693977610411,3.43980571,25764.0,25763.0,0.00142245]
[1693977610616,3.44316571,25764.0,25763.0,0.00142245]
[1693977610905,3.44310571,25764.0,25763.0,0.00142245]
[1693977611085,3.44304571,25764.0,25763.0,0.00142245]
[1693977611844,3.44298571,25764.0,25763.0,0.00142245]
[1693977612263,3.44292571,25764.0,25763.0,0.00142245]
[1693977612474,3.62334175,25764.0,25763.0,0.00142245]
[1693977612675,3.62244175,25764.0,25763.0,0.00142245]
[1693977612879,3.62316175,25764.0,25763.0,0.00142245]
[1693977613055,3.62118175,25764.0,25763.0,0.00142245]
[1693977613300,3.62514175,25764.0,25763.0,0.00142245]
[1693977613501,3.35305472,25764.0,25763.0,0.00142245]
[1693977613874,3.35299472,25764.0,25763.0,0.00142245]
[1693977614078,3.35293472,25764.0,25763.0,0.00142245]
[1693977614299,3.35299472,25764.0,25763.0,0.00142245]
[1693977614622,3.35227472,25764.0,25763.0,0.00142245]
[1693977614850,3.34615472,25764.0,25763.0,0.00142245]
[1693977615459,3.34621472,25764.0,25763.0,0.00142245]
[1693977615679,3.34627472,25764.0,25763.0,0.00142245]
[1693977615885,3.34951472,25764.0,25763.0,0.00142245]
[1693977616063,3.34957472,25764.0,25763.0,0.00142245]
[1693977616419,3.34939472,25764.0,25763.0,0.00142245]
[1693977616619,3.34897472,25764.0,25763.0,0.00142245]
[1693977616943,3.34891472,25764.0,25763.0,0.00142245]
[1693977617386,3.34897472,25764.0,25763.0,0.00142245]
[1693977617527,3.34963472,25764.0,25763.0,0.00142245]
[1693977617743,3.34873472,25764.0,25763.0,0.00142245]
[1693977617946,3.34933472,25764.0,25763.0,0.00142245]
[1693977618309,3.35005472,25764.0,25763.0,0.00142245]
[1693977618513,3.34939472,25764.0,25763.0,0.00142245]
[1693977618649,3.34981472,25764.0,25763.0,0.00142245]
[1693977618849,3.35029472,25764.0,25763.0,0.00142245]
[1693977619052,3.34861472,25764.0,25763.0,0.00142245]
[1693977619388,3.34789472,25764.0,25763.0,0.00142245]
[1693977619689,3.34807472,25764.0,25763.0,0.00142245]
[1693977619888,3.34855472,25764.0,25763.0,0.00142245]
[1693977620050,3.34861472,25764.0,25763.0,0.00142245]
[1693977620254,3.34867472,25764.0,25763.0,0.00142245]
[1693977620471,3.34819472,25764.0,25763.0,0.00142245]
[1693977620686,3.34855472,25764.0,25763.0,0.00142245]
[1693977620850,3.34873472,25764.0,25763.0,0.00142245]
[1693977621248,3.34957472,25764.0,25763.0,0.00142245]
[1693977621526,3.34969472,25764.0,25763.0,0.00142245]
[1693977621920,3.34963472,25764.0,25763.0,0.00142245]
[1693977622335,3.34885472,25764.0,25763.0,0.00142245]
[1693977622666,3.34651472,25764.0,25763.0,0.00142245]
[1693977622868,3.34897472,25764.0,25763.0,0.00142245]
[1693977623254,3.34891472,25764.0,25763.0,0.00142245]
[1693977623637,3.34693472,25764.0,25763.0,0.00142245]
[1693977623866,3.34429472,25764.0,25763.0,0.00142245]
[1693977624071,3.34405472,25764.0,25763.0,0.00142245]
[1693977624218,3.73075999,25764.0,25763.0,0.00142245]
[1693977624420,3.73687999,25764.0,25763.0,0.00142245]
[1693977624621,3.73627999,25764.0,25763.0,0.00142245]
[1693977624823,3.73423999,25764.0,25763.0,0.00142245]
[1693977625058,3.73411999,25764.0,25763.0,0.00142245]
[1693977625282,3.73285999,25764.0,25763.0,0.00142245]
[1693977625467,3.73309999,25764.0,25763.0,0.00142245]
[1693977625614,3.73315999,25764.0,25763.0,0.00142245]
[1693977626002,3.73141999,25764.0,25763.0,0.00142245]
[1693977626180,3.73057999,25764.0,25763.0,0.00142245]
[1693977626416,3.73483999,25764.0,25763.0,0.00142245]
[1693977626627,3.73597999,25764.0,25763.0,0.00142245]
[1693977626809,3.73585999,25764.0,25763.0,0.00142245]
[1693977627180,3.73477999,25764.0,25763.0,0.00142245]
[1693977627544,3.73537999,25764.0,25763.0,0.00142245]
[1693977627728,3.73531999,25764.0,25763.0,0.00142245]
[1693977628314,3.73537999,25764.0,25763.0,0.00142245]
[1693977628837,3.33721472,25764.0,25763.0,0.00142245]
[1693977629074,3.33715472,25764.0,25763.0,0.00142245]
[1693977629269,3.33589472,25764.0,25763.0,0.00142245]
[1693977629469,3.33595472,25764.0,25763.0,0.00142245]
[1693977629993,3.33511472,25764.0,25763.0,0.00142245]
[1693977630187,3.33517472,25764.0,25763.0,0.00142245]
[1693977630389,3.33649472,25764.0,25763.0,0.00142245]
[1693977630527,3.33769472,25764.0,25763.0,0.00142245]
[1693977630756,3.33817472,25764.0,25763.0,0.00142245]
[1693977630950,3.26761472,25764.0,25763.0,0.00142245]
[1693977636123,3.33289472,25764.0,25763.0,0.00142245]
[1693977636337,3.33301472,25764.0,25763.0,0.00142245]
[1693977636760,3.33469472,25764.0,25763.0,0.00142245]
[1693977636963,3.33475472,25764.0,25763.0,0.00142245]
[1693977637386,3.33925472,25764.0,25763.0,0.00142245]
[1693977637722,3.33997472,25764.0,25763.0,0.00142245]
[1693977637929,3.33979472,25764.0,25763.0,0.00142245]
[1693977638136,3.34183472,25764.0,25763.0,0.00142245]
[1693977638388,3.34237472,25764.0,25763.0,0.00142245]
[1693977638590,3.34333472,25764.0,25763.0,0.00142245]
[1693977638787,3.33901472,25764.0,25763.0,0.00142245]
[1693977639199,3.33871472,25764.0,25763.0,0.00142245]
[1693977639442,3.33859472,25764.0,25763.0,0.00142245]
[1693977639572,3.33853472,25764.0,25763.0,0.00142245]
[1693977639770,3.33859472,25764.0,25763.0,0.00142245]
[1693977640149,3.33853472,25764.0,25763.0,0.00142245]
[1693977640498,3.33877472,25764.0,25763.0,0.00142245]
[1693977640705,3.33871472,25764.0,25763.0,0.00142245]
[1693977640900,3.33865472,25764.0,25763.0,0.00142245]
[1693977641088,3.33871472,25764.0,25763.0,0.00142245]
[1693977641289,3.33895472,25764.0,25763.0,0.00142245]
[1693977641536,3.33853472,25764.0,25763.0,0.00142245]
[1693977641712,3.33889472,25764.0,25763.0,0.00142245]
[1693977641908,3.33895472,25764.0,25763.0,0.00142245]
[1693977642127,3.33859472,25764.0,25763.0,0.00142245]
[1693977642484,3.33907472,25764.0,25763.0,0.00142245]
[1693977642659,3.33937472,25764.0,25763.0,0.00142245]
[1693977642911,3.33931472,25764.0,25763.0,0.00142245]
[1693977643113,3.33937472,25764.0,25763.0,0.00142245]
[1693977643264,3.33931472,25764.0,25763.0,0.00142245]
[1693977643467,3.33763472,25764.0,25763.0,0.00142245]
[1693977643667,3.33697472,25764.0,25763.0,0.00142245]
[1693977643886,3.33769472,25764.0,25763.0,0.00142245]
[1693977644083,3.35137472,25764.0,25763.0,0.00142245]
[1693977644432,3.34879472,25764.0,25763.0,0.00142245]
[1693977644772,3.34843472,25764.0,25763.0,0.00142245]
[1693977644973,3.34837472,25764.0,25763.0,0.00142245]
[1693977645184,3.34831472,25764.0,25763.0,0.00142245]
[1693977645361,3.34825472,25764.0,25763.0,0.00142245]
[1693977645951,3.34849472,25764.0,25763.0,0.00142245]
[1693977646153,3.34855472,25764.0,25763.0,0.00142245]
[1693977646351,3.34867472,25764.0,25763.0,0.00142245]
[1693977646557,3.34861472,25764.0,25763.0,0.00142245]
[1693977646754,3.34855472,25764.0,25763.0,0.00142245]
[1693977646973,3.34849472,25764.0,25763.0,0.00142245]
[1693977647195,3.57916773,25764.0,25763.0,0.00142245]
[1693977647404,3.57994773,25764.0,25763.0,0.00142245]
[1693977647824,3.57988773,25764.0,25763.0,0.00142245]
[1693977648026,3.58000773,25764.0,25763.0,0.00142245]
[1693977648155,3.57934773,25764.0,25763.0,0.00142245]
[1693977648358,3.57880773,25764.0,25763.0,0.00142245]
[1693977648558,3.34777472,25764.0,25763.0,0.00142245]
[1693977648763,3.34519472,25764.0,25763.0,0.00142245]
[1693977649167,3.34237472,25764.0,25763.0,0.00142245]
[1693977649367,3.34261472,25764.0,25763.0,0.00142245]
[1693977649985,3.34249472,25764.0,25763.0,0.00142245]
[1693977650253,3.34231472,25764.0,25763.0,0.00142245]
[1693977650459,3.34255472,25764.0,25763.0,0.00142245]
[1693977650777,3.34393472,25764.0,25763.0,0.00142245]
[1693977650952,3.34381472,25764.0,25763.0,0.001]
[1693977651163,3.34387472,25764.0,25763.0,0.001]
[1693977651340,3.34381472,25764.0,25763.0,0.001]
[1693977651556,3.34387472,25764.0,25763.0,0.001]
[1693977651943,3.35683472,25764.0,25763.0,0.001]
[1693977652324,3.35845472,25764.0,25763.0,0.001]
[1693977652533,3.35839472,25764.0,25763.0,0.001]
[1693977652779,3.35701472,25764.0,25763.0,0.001]
[1693977652972,3.35671472,25764.0,25763.0,0.001]
[1693977653175,3.35653472,25764.0,25763.0,0.001]
[1693977653383,3.35779472,25764.0,25763.0,0.001]
[1693977653585,3.35845472,25764.0,25763.0,0.001]
[1693977653763,3.35839472,25764.0,25763.0,0.001]
[1693977653935,3.35833472,25764.0,25763.0,0.001]
[1693977654275,3.35803472,25764.0,25763.0,0.001]
[1693977654482,3.35827472,25764.0,25763.0,0.001]
[1693977654889,3.35821472,25764.0,25763.0,0.0015258]
[1693977655084,3.35815472,25764.0,25763.0,0.0015258]
[1693977655384,3.35797472,25764.0,25763.0,0.0015258]
[1693977655703,3.35791472,25764.0,25763.0,0.0015258]
[1693977655914,3.35893472,25764.0,25763.0,0.0015258]
[1693977656125,3.35755472,25764.0,25763.0,0.0015258]
[1693977656325,3.35743472,25764.0,25763.0,0.0015258]
[1693977656530,3.35749472,25764.0,25763.0,0.0015258]
[1693977656734,3.35707472,25764.0,25763.0,0.0015258]
[1693977656928,3.35701472,25764.0,25763.0,0.0015258]
[1693977657151,3.74329999,25764.0,25763.0,0.0015258]
[1693977657331,3.35683472,25764.0,25763.0,0.0015258]
[1693977657763,3.35671472,25764.0,25763.0,0.0015258]
[1693977658071,3.35665472,25764.0,25763.0,0.0015258]
[1693977658271,3.35659472,25764.0,25763.0,0.0015258]
[1693977658473,3.35653472,25764.0,25763.0,0.0015258]
[1693977658687,3.35641472,25764.0,25763.0,0.0015258]
[1693977658893,3.35629472,25764.0,25763.0,0.0015258]
[1693977659109,3.35599472,25764.0,25763.0,0.0015258]
[1693977659257,3.35617472,25764.0,25763.0,0.0015258]
[1693977659465,3.35611472,25764.0,25763.0,0.0015258]
[1693977659659,3.35605472,25764.0,25763.0,0.0015258]
[1693977659860,3.35599472,25764.0,25763.0,0.0015258]
[1693977660060,3.35929472,25764.0,25763.0,0.0015258]
[1693977660267,3.74347999,25764.0,25763.0,0.0015258]
[1693977660466,3.74341999,25764.0,25763.0,0.0015258]
[1693977660667,3.74335999,25764.0,25763.0,0.0015258]
[1693977660870,3.74329999,25764.0,25763.0,0.0015258]
[1693977661066,3.74323999,25764.0,25763.0,0.0015258]
[1693977661241,3.74317999,25764.0,25763.0,0.0015258]
[1693977661443,3.74401999,25764.0,25763.0,0.0015258]
[1693977661646,3.74395999,25764.0,25763.0,0.0015258]
[1693977661849,3.74389999,25764.0,25763.0,0.0015258]
[1693977662048,3.74725999,25764.0,25763.0,0.0015258]
[1693977662251,3.74563999,25764.0,25763.0,0.0015258]
[1693977662451,3.74551999,25764.0,25763.0,0.0015258]
[1693977662666,3.74545999,25764.0,25763.0,0.0015258]
[1693977662855,3.74611999,25764.0,25763.0,0.0015258]
[1693977663052,3.74605999,25764.0,25763.0,0.0015258]
[1693977663276,3.74611999,25764.0,25763.0,0.0015258]
[1693977663541,3.73591999,25764.0,25763.0,0.0015258]
[1693977663736,3.73327999,25764.0,25763.0,0.0015258]
[1693977663946,3.73249999,25764.0,25763.0,0.0015258]
[1693977664153,3.73315999,25764.0,25763.0,0.0015258]
[1693977664364,3.73255999,25764.0,25763.0,0.0015258]
[1693977664565,3.76419999,25764.0,25763.0,0.0015258]
[1693977664766,3.76425999,25764.0,25763.0,0.0015258]
[1693977664986,3.76479999,25764.0,25763.0,0.0015258]
[1693977665237,3.76473999,25764.0,25763.0,0.0015258]
[1693977665443,3.76467999,25764.0,25763.0,0.0015258]
[1693977665688,3.76461999,25764.0,25763.0,0.0015258]
[1693977666016,3.76371999,25764.0,25763.0,0.0015258]
[1693977666184,3.76359999,25764.0,25763.0,0.0015258]
[1693977666390,3.76227999,25764.0,25763.0,0.0015258]
[1693977666596,3.76191999,25764.0,25763.0,0.0015258]
[1693977666791,3.76185999,25764.0,25763.0,0.0015258]
[1693977666999,3.76143999,25764.0,25763.0,0.0015258]
[1693977667194,3.76365999,25764.0,25763.0,0.0015258]
[1693977667401,3.76335999,25764.0,25763.0,0.0015258]
[1693977667583,3.76401999,25764.0,25763.0,0.0015258]
[1693977667986,3.76275999,25764.0,25763.0,0.0015258]
[1693977668253,3.76377999,25764.0,25763.0,0.0015258]
[1693977668432,3.76371999,25764.0,25763.0,0.0015258]
[1693977668634,3.76293999,25764.0,25763.0,0.0015258]
[1693977668854,3.76161999,25764.0,25763.0,0.0015258]